[Event "*** Titled Tuesday Blitz"]
[Site "Chess.com"]
[Date "2019.04.02"]
[Round "4"]
[White "Taron_Shagbazyan"]
[Black "fidezivkovic"]
[Result "1-0"]
[WhiteElo "2713"]
[BlackElo "2311"]
[TimeControl "180+2"]
[EndTime "14:53:03 PDT"]
[Termination "Taron_Shagbazyan won by checkmate"]

1. d4 {[%clk 0:03:01.9]} 1... Nf6 {[%clk 0:02:58.5]} 2. c4 {[%clk 0:03:03.2]}
2... e6 {[%clk 0:02:56.5]} 3. Nc3 {[%clk 0:03:04.4]} 3... Bb4 {[%clk 0:02:56.5]}
4. e3 {[%clk 0:03:05.6]} 4... c5 {[%clk 0:02:56]} 5. Ne2 {[%clk 0:03:05.1]} 5...
cxd4 {[%clk 0:02:52.7]} 6. exd4 {[%clk 0:03:05.8]} 6... d5 {[%clk 0:02:52.8]} 7.
a3 {[%clk 0:03:06.4]} 7... Be7 {[%clk 0:02:52.4]} 8. cxd5 {[%clk 0:03:04.6]}
8... Nxd5 {[%clk 0:02:50.5]} 9. Nxd5 {[%clk 0:03:03.6]} 9... Qxd5 {[%clk
0:02:50.2]} 10. Nc3 {[%clk 0:03:04.2]} 10... Qd6 {[%clk 0:02:46.1]} 11. Qg4
{[%clk 0:02:52]} 11... Bf6 {[%clk 0:02:14.9]} 12. Be3 {[%clk 0:02:49.6]} 12...
O-O {[%clk 0:02:11]} 13. Ne4 {[%clk 0:02:46.9]} 13... Qe7 {[%clk 0:02:10.2]} 14.
Bd3 {[%clk 0:02:46.5]} 14... Nc6 {[%clk 0:01:46.4]} 15. Nxf6+ {[%clk 0:02:30.5]}
15... Qxf6 {[%clk 0:01:46]} 16. Rd1 {[%clk 0:02:27.8]} 16... Qe7 {[%clk
0:00:42]} 17. Qh5 {[%clk 0:02:15.2]} 17... f5 {[%clk 0:00:37.7]} 18. O-O {[%clk
0:02:13.3]} 18... Qf7 {[%clk 0:00:33.4]} 19. Qh4 {[%clk 0:02:10.5]} 19... Ne7
{[%clk 0:00:30.6]} 20. Rfe1 {[%clk 0:02:04.4]} 20... Nd5 {[%clk 0:00:29.4]} 21.
Bd2 {[%clk 0:02:02.1]} 21... Bd7 {[%clk 0:00:25.7]} 22. Re5 {[%clk 0:02:03]}
22... Bc6 {[%clk 0:00:20.2]} 23. Rde1 {[%clk 0:02:03.4]} 23... Rfd8 {[%clk
0:00:16.4]} 24. Rxe6 {[%clk 0:01:59.8]} 24... Re8 {[%clk 0:00:16]} 25. Rxe8+
{[%clk 0:02:00.3]} 25... Rxe8 {[%clk 0:00:16.1]} 26. Rxe8+ {[%clk 0:02:01.1]}
26... Qxe8 {[%clk 0:00:16.4]} 27. Bxf5 {[%clk 0:02:01.1]} 27... Qe2 {[%clk
0:00:16.4]} 28. Qxh7+ {[%clk 0:01:58.3]} 28... Kf8 {[%clk 0:00:15.7]} 29. h3
{[%clk 0:01:17.2]} 29... Qxd2 {[%clk 0:00:15.5]} 30. Qh8+ {[%clk 0:01:15.1]}
30... Kf7 {[%clk 0:00:15.7]} 31. Qh5+ {[%clk 0:01:16.6]} 31... Kf8 {[%clk
0:00:15.6]} 32. Qh8+ {[%clk 0:00:59.1]} 32... Kf7 {[%clk 0:00:16.1]} 33. Qh5+
{[%clk 0:01:00.5]} 33... Kf8 {[%clk 0:00:16.6]} 34. Qh4 {[%clk 0:00:44.2]} 34...
Qc1+ {[%clk 0:00:16.2]} 35. Kh2 {[%clk 0:00:45.1]} 35... Qf4+ {[%clk 0:00:16.5]}
36. Qxf4 {[%clk 0:00:44.3]} 36... Nxf4 {[%clk 0:00:17.1]} 37. g3 {[%clk
0:00:44.8]} 37... Nd5 {[%clk 0:00:17.3]} 38. h4 {[%clk 0:00:42.1]} 38... Ke7
{[%clk 0:00:17.5]} 39. f4 {[%clk 0:00:39.9]} 39... Kf6 {[%clk 0:00:17.1]} 40.
Bd3 {[%clk 0:00:40.5]} 40... Bd7 {[%clk 0:00:17]} 41. Kg2 {[%clk 0:00:39]} 41...
g6 {[%clk 0:00:16.4]} 42. Kf3 {[%clk 0:00:38.8]} 42... Bf5 {[%clk 0:00:16.8]}
43. Bc4 {[%clk 0:00:39]} 43... Nb6 {[%clk 0:00:17]} 44. Bb3 {[%clk 0:00:37.2]}
44... Be6 {[%clk 0:00:17.2]} 45. Bc2 {[%clk 0:00:36.1]} 45... Nc4 {[%clk
0:00:17.1]} 46. g4 {[%clk 0:00:35.4]} 46... Bd5+ {[%clk 0:00:17.3]} 47. Kg3
{[%clk 0:00:32.9]} 47... Nxb2 {[%clk 0:00:17.6]} 48. g5+ {[%clk 0:00:31.7]}
48... Kg7 {[%clk 0:00:17.7]} 49. f5 {[%clk 0:00:29.1]} 49... gxf5 {[%clk
0:00:17.9]} 50. Bxf5 {[%clk 0:00:31]} 50... Nc4 {[%clk 0:00:18]} 51. a4 {[%clk
0:00:31.7]} 51... Nd6 {[%clk 0:00:17.6]} 52. Bd3 {[%clk 0:00:29.1]} 52... Be4
{[%clk 0:00:17.5]} 53. Bf1 {[%clk 0:00:29]} 53... Kg6 {[%clk 0:00:17.6]} 54. Kf4
{[%clk 0:00:28.3]} 54... Bc2 {[%clk 0:00:17.8]} 55. Be2 {[%clk 0:00:27.8]} 55...
Bxa4 {[%clk 0:00:16.9]} 56. h5+ {[%clk 0:00:28.9]} 56... Kg7 {[%clk 0:00:17.3]}
57. h6+ {[%clk 0:00:30]} 57... Kf7 {[%clk 0:00:16.6]} 58. Bh5+ {[%clk
0:00:30.1]} 58... Kg8 {[%clk 0:00:16.7]} 59. Ke5 {[%clk 0:00:26.5]} 59... Nf7+
{[%clk 0:00:16.1]} 60. Kf6 {[%clk 0:00:23.5]} 60... Nxg5 {[%clk 0:00:15]} 61.
Kxg5 {[%clk 0:00:24.1]} 61... Bc2 {[%clk 0:00:15]} 62. d5 {[%clk 0:00:23.7]}
62... Be4 {[%clk 0:00:14]} 63. d6 {[%clk 0:00:15.7]} 63... Kf8 {[%clk
0:00:14.1]} 64. d7 {[%clk 0:00:14.5]} 64... Ke7 {[%clk 0:00:14]} 65. Bg6 {[%clk
0:00:16.4]} 65... Bxg6 {[%clk 0:00:13.5]} 66. Kxg6 {[%clk 0:00:17.2]} 66... Kxd7
{[%clk 0:00:14.3]} 67. h7 {[%clk 0:00:18.7]} 67... a5 {[%clk 0:00:15.3]} 68.
h8=Q {[%clk 0:00:20.6]} 68... b5 {[%clk 0:00:15.1]} 69. Qe5 {[%clk 0:00:20.6]}
69... Kc6 {[%clk 0:00:15.5]} 70. Kf5 {[%clk 0:00:21.7]} 70... a4 {[%clk
0:00:15.9]} 71. Ke4 {[%clk 0:00:22.9]} 71... a3 {[%clk 0:00:16.3]} 72. Qc3+
{[%clk 0:00:23]} 72... Kb6 {[%clk 0:00:16.1]} 73. Qxa3 {[%clk 0:00:24.9]} 73...
Kb7 {[%clk 0:00:13.6]} 74. Qb4 {[%clk 0:00:25.8]} 74... Ka6 {[%clk 0:00:13.4]}
75. Kd5 {[%clk 0:00:27.7]} 75... Kb6 {[%clk 0:00:13.7]} 76. Kd6 {[%clk
0:00:28.9]} 76... Ka6 {[%clk 0:00:13.8]} 77. Kc7 {[%clk 0:00:29.6]} 77... Ka7
{[%clk 0:00:13.8]} 78. Qa5# {[%clk 0:00:30.8]} 1-0

[Event "*** Titled Tuesday Blitz"]
[Site "Chess.com"]
[Date "2019.04.02"]
[Round "4"]
[White "Andrjywa"]
[Black "PelinGorki"]
[Result "1/2-1/2"]
[WhiteElo "2532"]
[BlackElo "2525"]
[TimeControl "180+2"]
[EndTime "14:53:28 PDT"]
[Termination "Game drawn - insufficient material"]

1. Nf3 {[%clk 0:03:01.9]} 1... e6 {[%clk 0:03:00.8]} 2. g3 {[%clk 0:03:03.5]}
2... g5 {[%clk 0:03:02.2]} 3. d4 {[%clk 0:02:53.9]} 3... g4 {[%clk 0:03:00.2]}
4. Ne5 {[%clk 0:02:53.9]} 4... h5 {[%clk 0:02:58.7]} 5. h3 {[%clk 0:02:53.9]}
5... d6 {[%clk 0:02:59.2]} 6. Nd3 {[%clk 0:02:54.3]} 6... Bg7 {[%clk 0:03:00.8]}
7. c3 {[%clk 0:02:54]} 7... Nc6 {[%clk 0:02:58.3]} 8. hxg4 {[%clk 0:02:54.9]}
8... hxg4 {[%clk 0:03:00.2]} 9. Rxh8 {[%clk 0:02:56]} 9... Bxh8 {[%clk
0:03:02.1]} 10. Bg2 {[%clk 0:02:57.6]} 10... Nge7 {[%clk 0:03:02.7]} 11. e4
{[%clk 0:02:55.9]} 11... Bd7 {[%clk 0:03:03.5]} 12. Qxg4 {[%clk 0:02:56]} 12...
Ng6 {[%clk 0:03:01.7]} 13. Bg5 {[%clk 0:02:53.1]} 13... Bf6 {[%clk 0:02:58.4]}
14. Bxf6 {[%clk 0:02:36.7]} 14... Qxf6 {[%clk 0:03:00.3]} 15. Qf3 {[%clk
0:02:32.3]} 15... Qe7 {[%clk 0:02:55.7]} 16. Nd2 {[%clk 0:02:29.1]} 16... O-O-O
{[%clk 0:02:54.6]} 17. O-O-O {[%clk 0:02:27.3]} 17... Na5 {[%clk 0:02:52.4]} 18.
Kb1 {[%clk 0:02:15.5]} 18... Bb5 {[%clk 0:02:49]} 19. Nb3 {[%clk 0:02:09.3]}
19... Nc4 {[%clk 0:02:47.2]} 20. Nf4 {[%clk 0:01:59.7]} 20... Nf8 {[%clk
0:02:37.9]} 21. Bf1 {[%clk 0:01:51.9]} 21... Nd7 {[%clk 0:02:32.9]} 22. Na5
{[%clk 0:01:39.8]} 22... Nd2+ {[%clk 0:02:27.1]} 23. Rxd2 {[%clk 0:01:39.3]}
23... Bxf1 {[%clk 0:02:29]} 24. e5 {[%clk 0:01:22.1]} 24... d5 {[%clk
0:02:29.6]} 25. Ne2 {[%clk 0:00:43.7]} 25... f6 {[%clk 0:02:18.9]} 26. exf6
{[%clk 0:00:41.9]} 26... Nxf6 {[%clk 0:02:20.2]} 27. Rd1 {[%clk 0:00:41.1]}
27... Bh3 {[%clk 0:02:10.6]} 28. Qe3 {[%clk 0:00:40.6]} 28... Rd6 {[%clk
0:01:56.1]} 29. Nb3 {[%clk 0:00:38.4]} 29... Qd7 {[%clk 0:01:49.2]} 30. Rh1
{[%clk 0:00:33.5]} 30... Bf5+ {[%clk 0:01:49.4]} 31. Ka1 {[%clk 0:00:31.4]}
31... Ra6 {[%clk 0:01:44.6]} 32. Rh8+ {[%clk 0:00:30.6]} 32... Ne8 {[%clk
0:01:45.1]} 33. Nc5 {[%clk 0:00:26]} 33... Qf7 {[%clk 0:00:49.5]} 34. Nxa6
{[%clk 0:00:26]} 34... bxa6 {[%clk 0:00:51.4]} 35. Qe5 {[%clk 0:00:19.4]} 35...
Kb7 {[%clk 0:00:49.4]} 36. Nf4 {[%clk 0:00:20.1]} 36... Nd6 {[%clk 0:00:48.5]}
37. Rh1 {[%clk 0:00:18.3]} 37... Nc4 {[%clk 0:00:49.7]} 38. Qe2 {[%clk
0:00:18.4]} 38... Qe8 {[%clk 0:00:41.9]} 39. b3 {[%clk 0:00:18.3]} 39... Nd6
{[%clk 0:00:39.4]} 40. Kb2 {[%clk 0:00:19.8]} 40... a5 {[%clk 0:00:33.3]} 41. f3
{[%clk 0:00:20.5]} 41... a4 {[%clk 0:00:32.5]} 42. g4 {[%clk 0:00:18.2]} 42...
a3+ {[%clk 0:00:29.9]} 43. Kxa3 {[%clk 0:00:16.5]} 43... Qf8 {[%clk 0:00:14]}
44. Kb2 {[%clk 0:00:16.3]} 44... Bxg4 {[%clk 0:00:15.5]} 45. fxg4 {[%clk
0:00:14.1]} 45... Qxf4 {[%clk 0:00:16.1]} 46. Rf1 {[%clk 0:00:15.2]} 46... Qh6
{[%clk 0:00:15.3]} 47. g5 {[%clk 0:00:14.2]} 47... Qxg5 {[%clk 0:00:14.4]} 48.
a4 {[%clk 0:00:15.7]} 48... a6 {[%clk 0:00:12.2]} 49. Re1 {[%clk 0:00:15]} 49...
Ne4 {[%clk 0:00:13.3]} 50. Rf1 {[%clk 0:00:14.1]} 50... e5 {[%clk 0:00:13]} 51.
dxe5 {[%clk 0:00:14.6]} 51... Qxe5 {[%clk 0:00:14.9]} 52. Qd3 {[%clk 0:00:15.5]}
52... Nxc3 {[%clk 0:00:13.2]} 53. Qxc3 {[%clk 0:00:12.6]} 53... Qe2+ {[%clk
0:00:13.6]} 54. Qc2 {[%clk 0:00:10.8]} 54... Qxf1 {[%clk 0:00:15.5]} 55. Qd2
{[%clk 0:00:11.7]} 55... Qf6+ {[%clk 0:00:14]} 56. Ka2 {[%clk 0:00:12.4]} 56...
Qd6 {[%clk 0:00:14.5]} 57. a5 {[%clk 0:00:12.5]} 57... Qc5 {[%clk 0:00:14.5]}
58. Kb2 {[%clk 0:00:12.9]} 58... d4 {[%clk 0:00:12.5]} 59. b4 {[%clk 0:00:12.3]}
59... Qd5 {[%clk 0:00:12.4]} 60. Ka3 {[%clk 0:00:13]} 60... Kc6 {[%clk 0:00:13]}
61. Qd3 {[%clk 0:00:14]} 61... Kb7 {[%clk 0:00:11.7]} 62. Kb2 {[%clk 0:00:14.3]}
62... Qd6 {[%clk 0:00:09]} 63. Kb3 {[%clk 0:00:15.1]} 63... Qe6+ {[%clk
0:00:09.9]} 64. Ka3 {[%clk 0:00:15.8]} 64... Qf6 {[%clk 0:00:10.8]} 65. Kb3
{[%clk 0:00:16.3]} 65... Kc8 {[%clk 0:00:11]} 66. Kc4 {[%clk 0:00:16.4]} 66...
Qc6+ {[%clk 0:00:06.4]} 67. Kxd4 {[%clk 0:00:17.5]} 67... Qd6+ {[%clk
0:00:07.8]} 68. Kc4 {[%clk 0:00:18.5]} 68... Qc6+ {[%clk 0:00:08.3]} 69. Kb3
{[%clk 0:00:19.3]} 69... Kb7 {[%clk 0:00:10]} 70. Qc4 {[%clk 0:00:20.1]} 70...
Qf3+ {[%clk 0:00:08.6]} 71. Qc3 {[%clk 0:00:21.2]} 71... Qd5+ {[%clk 0:00:09.2]}
72. Qc4 {[%clk 0:00:22.5]} 72... Qd1+ {[%clk 0:00:10]} 73. Kb2 {[%clk
0:00:22.2]} 73... Qd2+ {[%clk 0:00:09.5]} 74. Kb3 {[%clk 0:00:23.1]} 74... Qe3+
{[%clk 0:00:09.8]} 75. Kb2 {[%clk 0:00:23.8]} 75... Qe5+ {[%clk 0:00:10.7]} 76.
Kb3 {[%clk 0:00:24.8]} 76... Qg3+ {[%clk 0:00:11.3]} 77. Kb2 {[%clk 0:00:25.9]}
77... Qg2+ {[%clk 0:00:12]} 78. Kb3 {[%clk 0:00:26.6]} 78... Qf3+ {[%clk
0:00:12.4]} 79. Kb2 {[%clk 0:00:27.4]} 79... Qf2+ {[%clk 0:00:13]} 80. Kb3
{[%clk 0:00:28.7]} 80... Qf3+ {[%clk 0:00:08.6]} 81. Kb2 {[%clk 0:00:29.5]}
81... Qh1 {[%clk 0:00:09]} 82. Kb3 {[%clk 0:00:30.2]} 82... Qg2 {[%clk
0:00:08.7]} 83. b5 {[%clk 0:00:27.8]} 83... Qf3+ {[%clk 0:00:07.4]} 84. Kb4
{[%clk 0:00:27.5]} 84... Qf8+ {[%clk 0:00:06.8]} 85. Ka4 {[%clk 0:00:28.5]}
85... axb5+ {[%clk 0:00:05.9]} 86. Qxb5+ {[%clk 0:00:29.5]} 86... Ka7 {[%clk
0:00:07.5]} 87. a6 {[%clk 0:00:26.6]} 87... Qb8 {[%clk 0:00:05.5]} 88. Qxb8+
{[%clk 0:00:20.8]} 88... Kxb8 {[%clk 0:00:07.4]} 89. Kb5 {[%clk 0:00:22.4]}
89... Ka7 {[%clk 0:00:05.7]} 90. Kc6 {[%clk 0:00:24.3]} 90... Kxa6 {[%clk
0:00:07.6]} 91. Kxc7 {[%clk 0:00:25.4]} 1/2-1/2

[Event "*** Titled Tuesday Blitz"]
[Site "Chess.com"]
[Date "2019.04.02"]
[Round "4"]
[White "r31415"]
[Black "santosalberto1987"]
[Result "0-1"]
[WhiteElo "2339"]
[BlackElo "2413"]
[TimeControl "180+2"]
[EndTime "14:53:38 PDT"]
[Termination "santosalberto1987 won by resignation"]

1. e4 {[%clk 0:03:01.9]} 1... e6 {[%clk 0:02:59.6]} 2. d4 {[%clk 0:03:02.2]}
2... d5 {[%clk 0:03:00.7]} 3. Nc3 {[%clk 0:03:03.8]} 3... Nf6 {[%clk 0:03:01.6]}
4. e5 {[%clk 0:03:05.3]} 4... Nfd7 {[%clk 0:03:02.7]} 5. f4 {[%clk 0:03:07]}
5... c5 {[%clk 0:03:04.1]} 6. Nf3 {[%clk 0:03:08.6]} 6... Nc6 {[%clk 0:03:05.6]}
7. Be3 {[%clk 0:03:10.2]} 7... Qb6 {[%clk 0:03:06.8]} 8. a3 {[%clk 0:03:10.7]}
8... a6 {[%clk 0:03:05.5]} 9. Be2 {[%clk 0:02:55.8]} 9... Qa7 {[%clk 0:03:04.7]}
10. Qd2 {[%clk 0:02:48.8]} 10... b5 {[%clk 0:03:03]} 11. Nd1 {[%clk 0:02:33.6]}
11... cxd4 {[%clk 0:03:03.5]} 12. Nxd4 {[%clk 0:02:34.3]} 12... Nxd4 {[%clk
0:03:04.4]} 13. Bxd4 {[%clk 0:02:34]} 13... Bc5 {[%clk 0:03:06]} 14. c3 {[%clk
0:02:33.6]} 14... Bb7 {[%clk 0:03:01.3]} 15. Nf2 {[%clk 0:02:22.6]} 15... Bxd4
{[%clk 0:03:02]} 16. cxd4 {[%clk 0:02:15.3]} 16... Rc8 {[%clk 0:03:02.5]} 17.
O-O {[%clk 0:02:15.9]} 17... O-O {[%clk 0:03:03.1]} 18. Rfc1 {[%clk 0:02:16.4]}
18... Nb6 {[%clk 0:02:59.1]} 19. b3 {[%clk 0:02:08.8]} 19... Rxc1+ {[%clk
0:02:54.8]} 20. Rxc1 {[%clk 0:02:09.2]} 20... Rc8 {[%clk 0:02:56.7]} 21. Nd3
{[%clk 0:02:00.4]} 21... Nd7 {[%clk 0:02:53.2]} 22. Rxc8+ {[%clk 0:01:56.9]}
22... Bxc8 {[%clk 0:02:55.1]} 23. Qc3 {[%clk 0:01:58.8]} 23... Qb7 {[%clk
0:02:44]} 24. Kf2 {[%clk 0:01:45.6]} 24... g6 {[%clk 0:02:44.2]} 25. Ke3 {[%clk
0:01:46.4]} 25... Kg7 {[%clk 0:02:43.7]} 26. g4 {[%clk 0:01:46.1]} 26... Qb8
{[%clk 0:02:36.5]} 27. h4 {[%clk 0:01:34.1]} 27... Bb7 {[%clk 0:02:37.1]} 28. h5
{[%clk 0:01:07.8]} 28... Qc8 {[%clk 0:02:36.6]} 29. Kd2 {[%clk 0:00:56.5]} 29...
Qd8 {[%clk 0:02:28.5]} 30. g5 {[%clk 0:00:53.4]} 30... h6 {[%clk 0:02:26.8]} 31.
gxh6+ {[%clk 0:00:34.4]} 31... Kxh6 {[%clk 0:02:28.7]} 32. Qc1 {[%clk
0:00:32.7]} 32... Qh4 {[%clk 0:02:19.1]} 33. Qg1 {[%clk 0:00:28.1]} 33... a5
{[%clk 0:02:01.6]} 34. b4 {[%clk 0:00:26.2]} 34... axb4 {[%clk 0:02:00.1]} 35.
axb4 {[%clk 0:00:25.8]} 35... Nb6 {[%clk 0:01:59.9]} 36. hxg6 {[%clk 0:00:20.4]}
36... Nc4+ {[%clk 0:02:00.3]} 37. Kc3 {[%clk 0:00:21]} 37... fxg6 {[%clk
0:02:00.5]} 38. Qg4 {[%clk 0:00:21.4]} 38... Qh1 {[%clk 0:01:55.7]} 39. Bd1
{[%clk 0:00:05.4]} 39... Kh7 {[%clk 0:01:46.5]} 40. Qf3 {[%clk 0:00:02.9]} 40...
Qh2 {[%clk 0:01:43.5]} 41. Qe2 {[%clk 0:00:03.1]} 41... Qg3 {[%clk 0:01:42.5]}
42. Qf3 {[%clk 0:00:03.5]} 42... Qg1 {[%clk 0:01:42]} 43. Qe2 {[%clk 0:00:03.5]}
43... Bc6 {[%clk 0:01:39.2]} 44. Qg4 {[%clk 0:00:03.5]} 44... Qh2 {[%clk
0:01:36.7]} 45. Qe2 {[%clk 0:00:03.7]} 45... Qg3 {[%clk 0:01:36.4]} 46. Qf3
{[%clk 0:00:04.5]} 46... Qg1 {[%clk 0:01:35.7]} 47. Qe2 {[%clk 0:00:04.2]} 47...
Kg7 {[%clk 0:01:34.8]} 48. Qg4 {[%clk 0:00:04.9]} 48... Qe3 {[%clk 0:01:35.1]}
49. Qe2 {[%clk 0:00:04.8]} 49... Qg1 {[%clk 0:01:17.8]} 50. Qg4 {[%clk
0:00:05.6]} 50... Qh1 {[%clk 0:01:18.5]} 51. Qf3 {[%clk 0:00:06.1]} 51... Qh2
{[%clk 0:01:19]} 52. Qe2 {[%clk 0:00:06.6]} 52... Qh8 {[%clk 0:01:16.6]} 53. Nc5
{[%clk 0:00:07.1]} 53... Qa8 {[%clk 0:01:08.4]} 54. Nxe6+ {[%clk 0:00:06.2]}
54... Kg8 {[%clk 0:01:05.7]} 55. Qc2 {[%clk 0:00:06.3]} 55... Qa3+ {[%clk
0:01:04.7]} 56. Qb3 {[%clk 0:00:06]} 56... Qc1+ {[%clk 0:01:05.2]} 57. Qc2
{[%clk 0:00:05.8]} 57... Qe3+ {[%clk 0:01:01.5]} 58. Qd3 {[%clk 0:00:06.8]}
58... Qc1+ {[%clk 0:00:55]} 59. Qc2 {[%clk 0:00:08]} 59... Qa3+ {[%clk
0:00:56.4]} 60. Qb3 {[%clk 0:00:07.7]} 60... Qa1+ {[%clk 0:00:57.7]} 61. Kd3
{[%clk 0:00:04.4]} 61... Nb2+ {[%clk 0:00:58.6]} 62. Ke2 {[%clk 0:00:05.1]}
62... Bd7 {[%clk 0:00:45.7]} 63. Qc2 {[%clk 0:00:03.8]} 63... Qxd1+ {[%clk
0:00:41.4]} 64. Qxd1 {[%clk 0:00:04.4]} 64... Nxd1 {[%clk 0:00:43.3]} 65. Nc5
{[%clk 0:00:04.4]} 65... Bg4+ {[%clk 0:00:43.9]} 66. Kd2 {[%clk 0:00:03.3]}
66... Nf2 {[%clk 0:00:43.4]} 67. Na6 {[%clk 0:00:03.5]} 67... Ne4+ {[%clk
0:00:43.8]} 68. Ke3 {[%clk 0:00:04.8]} 68... Bd7 {[%clk 0:00:41.8]} 69. Nc7
{[%clk 0:00:05.5]} 69... Bc6 {[%clk 0:00:42.5]} 70. Kf3 {[%clk 0:00:05.9]} 70...
Kf7 {[%clk 0:00:41.8]} 71. Kg4 {[%clk 0:00:06.7]} 71... Nd2 {[%clk 0:00:41.4]}
72. f5 {[%clk 0:00:07]} 72... gxf5+ {[%clk 0:00:41.3]} 73. Kxf5 {[%clk
0:00:08.9]} 73... Ke7 {[%clk 0:00:40.4]} 74. Na6 {[%clk 0:00:08]} 74... Nb3
{[%clk 0:00:38.9]} 75. Kf4 {[%clk 0:00:03.2]} 75... Nxd4 {[%clk 0:00:39.5]} 76.
Ke3 {[%clk 0:00:05.1]} 76... Ne6 {[%clk 0:00:40.2]} 77. Nb8 {[%clk 0:00:05.7]}
77... Be8 {[%clk 0:00:35.1]} 78. Na6 {[%clk 0:00:06]} 78... Kd8 {[%clk 0:00:36]}
79. Kf3 {[%clk 0:00:04.5]} 79... Kc8 {[%clk 0:00:36.9]} 80. Kg4 {[%clk
0:00:04.2]} 80... Kb7 {[%clk 0:00:38]} 81. Kf5 {[%clk 0:00:04.6]} 81... Bd7
{[%clk 0:00:38]} 82. Kf6 {[%clk 0:00:03.5]} 82... Kxa6 {[%clk 0:00:37.2]} 83.
Ke7 {[%clk 0:00:05.4]} 83... Nf4 {[%clk 0:00:31.9]} 84. Kxd7 {[%clk 0:00:05.6]}
84... d4 {[%clk 0:00:33.1]} 85. Kc6 {[%clk 0:00:04.9]} 85... d3 {[%clk
0:00:33.3]} 86. e6 {[%clk 0:00:02.5]} 86... Nxe6 {[%clk 0:00:33.9]} 87. Kd7
{[%clk 0:00:03.6]} 87... d2 {[%clk 0:00:33.6]} 88. Kc6 {[%clk 0:00:05.5]} 88...
Nd4+ {[%clk 0:00:33]} 0-1